[Event "45th FIDE Olympiad 2024"]
[Site "Budapest"]
[Date "2024.09.15"]
[Round "5.138"]
[White "Agopov, Mikael"]
[Black "Razanadrakotoarisoa, Toavina"]
[Result "1-0"]
[ECO "B48"]
[WhiteElo "2451"]
[BlackElo "2147"]
[Annotator "TA"]
[PlyCount "51"]
[EventDate "2024.09.05"]
[EventType "team-tourn"]
[EventCountry "HUN"]
[SourceTitle "playchess.com"]
[Source "ChessBase"]
[SourceQuality "1"]
[WhiteTeam "Finland"]
[BlackTeam "Madagascar"]
[WhiteTeamCountry "FIN"]
[BlackTeamCountry "MAD"]
[TimeControl "40/5400+30:1800+30"]

{[%evp 11,51,31,43,21,27,32,53,12,24,18,16,25,99,94,97,96,395,404,425,421,572,568,616,623,571,544,532,511,510,453,535,525,542,533,692,657,828,814,795,784,719,706]} 1. e4 c5 2. Nf3 e6 3. d4 cxd4 4. Nxd4 Nc6 5. Nc3 Qc7 6. Be3 a6 7. Qf3 Nf6 {[%cal Of8a3]} 8. O-O-O {[%cal Ba1d1,Bd1d4,Bd4c4][%mdl 32]} Be7 9. Be2 {White is slightly better.} d6 10. g4 {[%cal Bg2g4,Bg4g5][%mdl 32]} Nxd4 11. Rxd4 e5 (11... b5 $11) 12. Rc4 $16 Qd8 13. g5 {White is more active.} Ng4 {[%mdl 8192] [#]} (13... Bg4 $16 14. Qg2 Bxe2 15. Nxe2 Nh5) 14. Rxc8 $1 $18 {[%mdl 512]} Rxc8 (14... Qxc8 15. Qxg4) 15. Qxg4 {White is clearly winning.} O-O 16. Nd5 {[%cal Og4c8] And now Qxc8! would win.} Rc6 17. h4 {[%cal Bh2h4,Bh4h5,Bh5g6][%mdl 32]} Re8 18. h5 Qc8 19. Qxc8 Rcxc8 20. g6 Bd8 21. Rh3 fxg6 {Black is weak on the light squares} 22. hxg6 h6 23. Bg4 Rb8 24. Bd7 Rf8 25. Be6+ Kh8 26. Bf7 {White took control after the opening.   Weighted Error Value: White=0.11 (very precise) /Black=0.63.  Loses game:     	---       	Black=1      Mistake:       	---       	Black=1      Inaccurate:     	White=1     	Black=1      OK:         	White=8     	Black=5      Best:        	White=1     	---        Brilliant:      	White=1     	---} 1-0

[Event "45th FIDE Olympiad 2024"]
[Site "Budapest"]
[Date "2024.09.15"]
[Round "5.139"]
[White "Andrianiaina, Heritiana"]
[Black "Lahdelma, Henri"]
[Result "0-1"]
[ECO "D37"]
[WhiteElo "2149"]
[BlackElo "2331"]
[Annotator "TA"]
[PlyCount "110"]
[EventDate "2024.09.05"]
[EventType "team-tourn"]
[EventCountry "HUN"]
[SourceTitle "playchess.com"]
[Source "ChessBase"]
[SourceQuality "1"]
[WhiteTeam "Madagascar"]
[BlackTeam "Finland"]
[WhiteTeamCountry "MAD"]
[BlackTeamCountry "FIN"]
[TimeControl "40/5400+30:1800+30"]

{[%evp 12,110,30,29,33,35,39,19,36,3,7,0,0,0,0,0,10,0,8,0,0,0,18,-8,-6,-13,-11,-25,29,26,35,35,38,32,28,17,20,13,42,45,60,60,70,66,89,58,57,0,0,0,0,0,0,-52,-47,-67,-70,-115,-40,-44,-19,-22,-22,-23,0,0,0,-6,0,-8,0,-13,-15,-20,-16,-15,-12,-12,-13,-11,-13,-23,-8,-62,-70,-221,-199,-375,-415,-376,-410,-412,-348,-432,-428,-454,-418,-1020,-973,-4710,-2781]} 1. d4 d5 2. c4 e6 3. Nc3 a6 4. cxd5 exd5 5. Nf3 Nf6 6. Bg5 {D37: Queen's Gambit Declined: 5 Bf4.} Be6 7. e3 Nbd7 8. Bd3 Bd6 9. Qc2 h6 10. Bh4 c6 11. Bg3 Bxg3 12. hxg3 Qe7 13. O-O O-O 14. Rab1 Rfc8 $146 ({Predecessor:} 14... Qd6 15. Rfc1 Ng4 16. Na4 Rae8 17. b4 Ndf6 18. Nc5 Bc8 19. a4 Re7 20. b5 axb5 21. axb5 cxb5 22. Rxb5 {1-0 Safin,T (2260)-Smirnov,A (2397) Zudov Memorial rapid 2023 (4)}) 15. Rfc1 Bg4 16. Na4 g6 17. Nc5 Nxc5 18. Qxc5 Qxc5 19. Rxc5 Bxf3 (19... h5 $142) 20. gxf3 $11 Kf8 21. Kg2 Ke7 22. Rh1 h5 23. Rh4 b6 24. Rc3 Kd6 25. Rh1 Rc7 26. e4 Kd7 27. Rhc1 Raa7 28. e5 Ne8 {[#]} 29. e6+ ({White should try} 29. Rb3 $1 $14) 29... Kxe6 $11 30. Rxc6+ Kd7 31. Rxc7+ Nxc7 32. Bc2 ({White should play} 32. f4 $11) 32... Ne6 $15 33. Bb3 Kd6 ({Much weaker is} 33... Nxd4 34. Bxd5 Kd6 35. Be4 $11) 34. Rc8 Rd7 ({Better is} 34... Re7 $17 35. Kf1 Nxd4 36. Rd8+ Kc7 37. Rxd5 Nxb3 (37... Nxf3 38. Rd3 $17) 38. axb3 a5) 35. Ra8 $1 $15 Nxd4 36. Rxa6 Kc5 37. Bd1 Nc6 38. a3 Re7 39. Ba4 Rb7 40. Ra8 Kd6 41. Bxc6 Kxc6 42. Kf1 Re7 43. f4 Kc5 44. Rc8+ Kd4 45. Rc3 Re6 46. a4 f6 47. Ra3 (47. Rc7 $11) 47... Kc4 $15 48. a5 $2 (48. f5 $15 gxf5 49. Rc3+ Kb4 50. Rd3) 48... bxa5 $19 49. Rxa5 $2 {[#]} (49. Rc3+ {was the only defense.} Kb4 50. Rd3) 49... d4 $1 $19 50. Ra1 Rb6 51. Rc1+ Kd5 52. Rb1 d3 53. Ke1 Rb3 54. f3 (54. Rd1 $142 Ke4 (54... Rxb2 55. Rxd3+ Ke4 56. Re3+ Kf5 57. Kf1 $17) 55. Rb1) 54... Kd4 $19 55. Kd2 f5 0-1

[Event "45th FIDE Olympiad 2024"]
[Site "Budapest"]
[Date "2024.09.15"]
[Round "5.140"]
[White "Wartiovaara, Oliver"]
[Black "Rakotomaharavo, Dylan"]
[Result "1-0"]
[ECO "A17"]
[WhiteElo "2300"]
[BlackElo "2078"]
[Annotator "TA"]
[PlyCount "105"]
[EventDate "2024.09.05"]
[EventType "team-tourn"]
[EventCountry "HUN"]
[SourceTitle "playchess.com"]
[Source "ChessBase"]
[SourceQuality "1"]
[WhiteTeam "Finland"]
[BlackTeam "Madagascar"]
[WhiteTeamCountry "FIN"]
[BlackTeamCountry "MAD"]
[TimeControl "40/5400+30:1800+30"]

{[%evp 33,105,37,94,91,270,280,266,265,296,296,302,309,294,239,237,222,208,0,0,-17,0,-12,37,0,0,0,0,0,0,0,0,0,0,0,0,0,0,0,0,0,0,0,0,0,0,0,0,0,0,0,0,0,146,146,29979,8,8,8,8,8,8,8,8,8,8,8,8,8,8,8,10,0,8,0]} 1. c4 Nf6 2. Nc3 e6 3. Nf3 d5 4. e3 a6 5. b3 c5 6. Bb2 {A17: English Opening: 1...Nf6 with ...Bb4.} Nc6 7. cxd5 exd5 8. d4 cxd4 9. Nxd4 Bc5 10. Nxc6 bxc6 11. Be2 O-O 12. O-O Bd6 13. Bf3 Bf5 $146 ({Predecessor:} 13... Qe7 14. Rc1 Bb7 15. Ne2 Rfd8 16. Qc2 Rac8 17. Qf5 Nd7 18. Qh3 Ne5 19. Nd4 g6 {½-½ Galyas,M (2517)-Villegas,P (2397) Budapest FS08 GM 2018 (9)}) 14. Ne2 Be4 15. Ng3 Bg6 16. Rc1 Rc8 17. Be2 Qa5 (17... a5 $14) 18. f4 $16 Ne4 $2 (18... Bc5 $16 {was called for.}) 19. f5 $1 $18 Bxg3 20. hxg3 (20. Qd4 f6 21. hxg3 (21. fxg6 $2 Be5 $19) 21... Bf7 $11 (21... Nxg3 22. Bd3 $15)) 20... Nxg3 21. fxg6 Nxf1 22. gxh7+ (22. Qxf1 hxg6 (22... fxg6 $2 23. Qd1 $18) 23. Qd1 (23. Bxa6 Rb8 $16) 23... Rce8 24. Rxc6 d4 25. Rxa6 (25. Qxd4 Qe1+ 26. Kh2 f6 $18) 25... Qg5 26. Qxd4 (26. Bxd4 Rxe3 27. Bxe3 Qxe3+ 28. Kf1 Rc8 $18) 26... Qh6 $18) (22. Bxf1 fxg6 23. Be2 (23. Qd4 Rf7 $18) 23... Kh8) 22... Kh8 23. Qd4 f6 24. Rxf1 (24. Bxf1 c5 25. Qc3 (25. Qxd5 Qxa2 26. Bc3 Rfd8 $18) 25... Qxc3 26. Bxc3 (26. Rxc3 Rc7 $18) 26... c4 27. bxc4 dxc4 $18) 24... Qxa2 {[#]} 25. Bd3 $2 (25. Qc3 $1 $18 Rb8 26. Bd1) 25... Qxb3 $11 26. Bg6 (26. Rxf6 $5 Qd1+ $8 (26... Rxf6 $2 27. Qxf6 Qb7 28. Bxa6 $18) 27. Kh2 (27. Kf2 c5 $11) 27... Qh5+ (27... gxf6 28. Qxf6+ Rxf6 29. Bxf6#) 28. Kg1 Qd1+ (28... Rxf6 $2 29. Qxf6 Qg4 30. Qe7 $18) 29. Kh2 (29. Kf2 c5 $15) 29... Qh5+ (29... gxf6 30. Qxf6+ Rxf6 31. Bxf6#) 30. Kg1 Qd1+ $11 (30... Rxf6 $2 31. Qxf6 Qg4 32. Qe7 $18)) 26... c5 27. Qd2 Rc6 (27... a5 $11) 28. Rf5 Rb6 29. Bc3 Rd6 30. Be5 Rdd8 31. Qf2 Qb1+ 32. Kh2 Qe4 33. Kh3 d4 34. exd4 cxd4 35. Rxf6 Rxf6 36. Qxf6 (36. Bxe4 $2 Rxf2 37. Bd3 Ra2 $19) 36... Qe3+ 37. Kg4 Qe2+ 38. Kh4 Qe1+ 39. g3 Qh1+ 40. Kg4 $1 Qd1+ 41. Kg5 (41. Kh3 $5 Qh1+ $8 42. Kg4 Qd1+ 43. Kg5 Qc1+ 44. Kg4 Qd1+ $11) 41... Qc1+ $1 42. Qf4 Qxf4+ (42... Qc5 $1 $11 43. Kg4 Qe7) 43. gxf4 $16 (43. Kxf4 d3 44. Bh5 a5 $17 (44... Kxh7 45. Ke4 $15)) 43... d3 $2 {[%mdl 8192] [#]} (43... a5 $16) 44. f5 $2 (44. Bf5 $1 {mates} Re8 45. Kg6 (45. Bxd3 Re6 $16) 45... Re7 46. Bxd3 Rb7 47. Be4 (47. Bxa6 Rb6+ 48. Kf7 Rxa6 $11) 47... Re7 48. Bd5 a5 49. Bf7) 44... Rd5 $11 45. Kf4 d2 46. f6 Rd7 ({Worse is} 46... Rxe5 47. f7) 47. fxg7+ Rxg7 48. Bc2 d1=Q 49. Bxd1 Kxh7 50. Bc2+ Kg8 51. Bb3+ Kh7 52. Bc2+ Kg8 53. Bb3+ 1-0

[Event "45th FIDE Olympiad 2024"]
[Site "Budapest"]
[Date "2024.09.15"]
[Round "5.141"]
[White "Meier, Georg"]
[Black "Bai, Adelard"]
[Result "1-0"]
[ECO "E11"]
[WhiteElo "2591"]
[BlackElo "2378"]
[Annotator "TA"]
[PlyCount "81"]
[EventDate "2024.09.05"]
[EventType "team-tourn"]
[EventCountry "HUN"]
[SourceTitle "playchess.com"]
[Source "ChessBase"]
[SourceQuality "1"]
[WhiteTeam "Uruguay"]
[BlackTeam "Chinese Taipei"]
[WhiteTeamCountry "URU"]
[TimeControl "40/5400+30:1800+30"]

{[%evp 11,81,26,31,35,24,33,34,27,36,33,47,33,27,8,30,21,53,0,133,125,123,120,130,128,131,116,121,118,112,112,126,112,116,121,139,138,171,164,202,176,181,168,172,138,245,247,256,244,317,331,340,333,568,564,654,652,739,714,29982,29983,29988,29989,29989,29990,29993,29994,29994,29995,29997,29998,29998,29999]} 1. d4 Nf6 2. c4 e6 3. Nf3 Bb4+ 4. Bd2 c5 5. Bxb4 cxb4 6. e3 {[%cal Be2e3,Be3e4][%mdl 32]} b6 7. Bd3 Bb7 {Prevents e4} 8. O-O O-O 9. Re1 {White is slightly better.} d6 10. e4 e5 11. Nbd2 (11. dxe5 dxe5 12. Qe2 (12. Nxe5 Na6 $15) 12... Nbd7 $17) 11... Nc6 12. Nf1 Re8 13. Ng3 (13. d5 {simplifies} Nb8 14. a3 bxa3 15. Rxa3 a5 16. Bc2) 13... g6 14. Qd2 (14. Bc2 $14) 14... Kg7 (14... exd4 $11 15. Rad1 Nd7) 15. d5 $16 Nb8 {[%cal Bc6b8,Bb8a6,Ba6c5,Bc5d3][%mdl 32]} 16. Qxb4 {White is more active.} a5 17. Qd2 Na6 18. b3 Nc5 19. h3 Nxd3 20. Qxd3 Nd7 {[%cal Bf6d7,Bd7c5,Bc5a6][%mdl 32]} 21. Qe3 Nc5 22. Nd2 Bc8 23. a3 Bd7 24. b4 Na6 25. Rab1 {[%cal Ba1b1,Bb1b2,Bb2a2][%mdl 32]} axb4 26. axb4 Qe7 27. Rb2 {[%cal Oe1a1]} Rec8 {[#]} (27... b5 $16 28. Ne2 bxc4) 28. Ra1 $1 $18 ({Don't play} 28. Qxb6 $6 Rcb8 29. Qe3 (29. Qa5 Nxb4 $17) 29... Rxb4 30. Rxb4 Nxb4) 28... Qd8 29. Ne2 Qc7 30. f4 f6 31. fxe5 fxe5 (31... dxe5 32. Rba2 Qb7) 32. Rba2 Qb7 33. Qg5 Be8 34. Ng3 {[%cal Be2g3,Bg3f5,Bf5e7][%mdl 32] Nf5+ would now be deadly.} Nxb4 35. Nf5+ {White mates.} Kg8 36. Ne7+ {Excellent horsemanship.} Kg7 {[#]} 37. Rf1 $1 h5 (37... Bd7 38. Nxc8) 38. Qf6+ Kh7 {[#]} 39. Qf8 $1 Rxa2 (39... Qxe7 40. Qxe7+) 40. Rf7+ Bxf7 41. Qxf7+ {Weighted Error Value: White=0.07 (flawless) /Black=0.44.  Mistake:       	White=1     	Black=3      Inaccurate:     	---       	Black=1      OK:         	White=9     	Black=7      Best:        	White=2     	---} 1-0

[Event "45th FIDE Olympiad 2024"]
[Site "Budapest"]
[Date "2024.09.15"]
[Round "5.142"]
[White "Song, Raymond"]
[Black "Rodriguez Vila, Andres"]
[Result "1/2-1/2"]
[ECO "B01"]
[WhiteElo "2503"]
[BlackElo "2417"]
[Annotator "TA"]
[PlyCount "86"]
[EventDate "2024.09.05"]
[EventType "team-tourn"]
[EventCountry "HUN"]
[SourceTitle "playchess.com"]
[Source "ChessBase"]
[SourceQuality "1"]
[WhiteTeam "Chinese Taipei"]
[BlackTeam "Uruguay"]
[BlackTeamCountry "URU"]
[TimeControl "40/5400+30:1800+30"]

{[%evp 9,86,58,65,70,60,54,53,52,56,56,68,56,60,55,58,63,52,50,51,43,35,16,34,7,9,0,5,26,19,21,41,5,0,10,66,79,76,69,99,98,194,172,175,175,174,179,162,13,297,253,241,94,99,117,114,0,0,0,0,0,0,-34,0,0,0,0,0,0,0,0,0,0,0,0,0,0,0,0,0]} 1. e4 d5 2. exd5 Nf6 3. Nf3 Bg4 4. Bb5+ Nbd7 5. Nc3 a6 6. Be2 Nb6 7. O-O Nbxd5 8. Nxd5 {White is slightly better.} Qxd5 9. h3 {c4 would now be deadly.} Bh5 10. d4 e6 11. c4 Qd8 12. Qb3 Rb8 13. Be3 {[%cal Od4d5]} Bd6 14. Rfd1 O-O 15. Rac1 c6 16. Qc2 (16. g4 $5 Bg6 $8 17. Ne5 $14) 16... Qc7 17. a3 a5 {[%cal Ba6a5,Ba5a4][%mdl 32]} 18. Qd2 {Strongly threatening c5.} Ne4 19. Qe1 a4 20. d5 exd5 21. cxd5 {[%cal Bc4d5,Bd5d6,Bd6d7][%mdl 32]} c5 (21... Bg6 $11) 22. Nd4 $1 $14 Bxe2 23. Qxe2 Rfe8 24. Nb5 Bh2+ (24... Qd7 $16) 25. Kh1 $18 Qe5 26. d6 {Black must now prevent Nc7.} (26. Bxc5 $2 Ng3+ 27. fxg3 Qxe2 $19) 26... Bf4 27. d7 Red8 {[#]} 28. Rc2 ({Better is} 28. Qf3 $1 $18 Bxe3 29. Qxe3) 28... h6 $2 {[%mdl 8192]} (28... Bxe3 $11 29. Qxe3 Qf5) 29. Bxf4 Qxf4 {[#]} 30. Kg1 (30. Nc3 $1 $18 {[%cal Rc3e4] and the rest is easy.} Nf6 31. Nd5 Nxd5 32. Rxd5) 30... Qf5 31. g4 Qg6 32. Nc3 {White is more active.} (32. Rc4 $16 f5 33. Rxa4) 32... Ng5 $11 33. Kh2 {[%cal Oc2d2]} (33. Nxa4 $2 {too greedy.} Nxh3+ 34. Kh1 Nf4 $19) 33... Nf3+ 34. Qxf3 Qxc2 35. Ne4 b6 {[%cal Oc2b3] Hoping for ...Qb3!} 36. Rd6 {The position is equal.} Rb7 37. Qf5 Kf8 38. Kg3 Qb3+ 39. f3 Qe3 {...Qg1+ is the strong threat.} 40. h4 Qe1+ 41. Kg2 Qe2+ 42. Kg3 Qe1+ 43. Kg2 Qe2+ {Black escapes into a draw.   Weighted Error Value: White=0.18 (very precise) /Black=0.18 (very precise) .  Loses game:     	---       	Black=1      Mistake:       	White=3     	Black=2      Inaccurate:     	White=3     	Black=2      OK:         	White=15    	Black=16     Best:        	White=4     	Black=2      Strong:       	White=1     	---} 1/2-1/2

[Event "45th FIDE Olympiad 2024"]
[Site "Budapest"]
[Date "2024.09.15"]
[Round "5.143"]
[White "Vazquez, Facundo"]
[Black "Yang, Ching Wei"]
[Result "1-0"]
[ECO "D11"]
[WhiteElo "2388"]
[BlackElo "2121"]
[Annotator "TA"]
[PlyCount "103"]
[EventDate "2024.09.05"]
[EventType "team-tourn"]
[EventCountry "HUN"]
[SourceTitle "playchess.com"]
[Source "ChessBase"]
[SourceQuality "1"]
[WhiteTeam "Uruguay"]
[BlackTeam "Chinese Taipei"]
[WhiteTeamCountry "URU"]
[TimeControl "40/5400+30:1800+30"]

{[%evp 9,103,14,7,-18,-3,0,8,7,20,14,27,2,3,-4,17,11,43,60,43,49,47,23,41,33,56,23,153,139,139,137,138,135,133,139,143,138,189,132,127,28,124,-20,37,-73,-62,-58,-86,-100,0,0,0,0,14,14,26,14,23,22,152,148,160,160,170,160,169,169,170,164,171,168,179,167,250,242,229,241,233,239,456,448,540,429,604,603,553,552,2533,2161,5618,5483,29972,29973,29977,29978,29971,29970]} 1. d4 d5 2. c4 c6 3. Nf3 Nf6 4. g3 Bf5 5. Qb3 Qb6 6. c5 Qxb3 7. axb3 e6 8. Nc3 {The position is equal.} Be7 9. Bf4 O-O 10. Bg2 h6 11. b4 Ne4 12. Ne5 Nxc3 13. bxc3 f6 14. Nd3 {Black is weak on the dark squares} Nd7 {[%cal Oe6e5]} 15. O-O a6 {[%cal Oe6e5]} 16. Rfe1 g5 17. Bd2 Bxd3 (17... Kf7 $11 {remains equal.}) 18. exd3 $16 Kf7 19. Bf3 {[#] And now Bh5+ would win.} f5 20. Bh5+ Kf6 21. Re2 Rh8 22. c4 Rhd8 (22... Rac8 $16 {is a better defense.} 23. f4 Rcg8) 23. Bc3 (23. cxd5 $18 cxd5 24. f4) 23... Nf8 24. Bf3 {White has more active pieces.} (24. cxd5 $16 cxd5 25. Rea2) 24... Kf7 (24... g4 $11 25. Bg2 Kf7) 25. Rb2 ({Better is} 25. cxd5 $16 cxd5 26. Bh5+ Kg7 27. Rea2) 25... Bf6 (25... g4 $11 26. Bd1 Bf6) 26. b5 (26. Bh5+ $14 {keeps the upper hand.} Kg7 27. Rd2) 26... axb5 $17 27. Rxa8 Rxa8 28. cxb5 cxb5 (28... Ra1+ 29. Kg2 Ra3 (29... g4 $2 30. bxc6 gxf3+ 31. Kxf3 $18) 30. bxc6 bxc6 31. Bb4) (28... Ra3 $17 29. Bh5+ Ke7 30. bxc6 bxc6) 29. Rxb5 $11 Ra7 30. Bh5+ Kg7 31. Be8 $36 {[%mdl 2048] Black is under pressure.} Bd8 32. Kf1 Ng6 33. Bd7 Ne7 {White now steadily converts the win.} (33... Kf6 $1 $11) 34. Bxe6 $16 Kf6 35. Bd7 Bc7 36. Ke1 Bd8 37. Kd1 Ra3 38. Kc2 Ra7 39. Kb2 Kg6 40. Rb3 Kh5 (40... Kf7 $142 41. Rb5 b6) 41. f3 {Black must now prevent Be8+.} Kg6 {[#]} 42. Ra3 $1 Rxa3 43. Kxa3 $18 {[%mdl 4096] Endgame. Threatens to win with Ka4. KBB-KBN} Bc7 $2 (43... Kf6 44. Ka4 Nc6) 44. Ka4 h5 45. Be8+ Kh6 (45... Kg7 $142 46. Ba5 (46. Bxh5 Nc6 $18) 46... Bb8) 46. Ba5 Bb8 47. Bd8 Nc6 48. Bxc6 bxc6 49. Ka5 h4 50. gxh4 {White mates.} g4 51. Bg5+ Kh5 52. f4 {Weighted Error Value: White=0.23 (precise) /Black=0.47.  Mistake:       	White=4     	Black=9      Inaccurate:     	White=1     	Black=1      OK:         	White=12    	Black=12     Best:        	White=3     	Black=3} 1-0

[Event "45th FIDE Olympiad 2024"]
[Site "Budapest"]
[Date "2024.09.15"]
[Round "5.144"]
[White "Wang, Ting-Hao"]
[Black "Roselli Mailhe, Bernardo"]
[Result "0-1"]
[ECO "C15"]
[WhiteElo "1842"]
[BlackElo "2362"]
[Annotator "TA"]
[PlyCount "106"]
[EventDate "2024.09.05"]
[EventType "team-tourn"]
[EventCountry "HUN"]
[SourceTitle "playchess.com"]
[Source "ChessBase"]
[SourceQuality "1"]
[WhiteTeam "Chinese Taipei"]
[BlackTeam "Uruguay"]
[BlackTeamCountry "URU"]
[TimeControl "40/5400+30:1800+30"]

{[%evp 10,106,27,0,21,0,0,0,76,43,42,36,133,18,14,-7,0,0,-2,-10,0,-42,-3,-43,-45,-45,-47,-50,-39,-52,-52,-52,-50,-53,-44,-87,-63,-70,-68,-100,-48,-64,-48,-48,-48,-48,-48,-75,-60,-84,-60,-62,-62,-62,-62,-63,-63,-68,-61,-61,-61,-71,-50,-72,-48,-59,-44,-56,-59,-55,-54,-135,-135,-135,-122,-114,-125,-250,-247,-666,-728,-715,-714,-792,-741,-806,-782,-1172,-901,-1297,-1300,-1278,-1170,-1124,-914,-1644,-1172,-810,-717]} 1. e4 e6 2. d4 d5 3. Nc3 Bb4 4. Nge2 Nc6 5. a3 Ba5 6. e5 (6. b4 $5 Bb6 $8 7. e5 $11) 6... f6 7. Nf4 Qe7 8. Bb5 Bd7 (8... fxe5 $11 {remains equal.} 9. dxe5 Qf7) 9. Bxc6 Bxc6 10. O-O f5 (10... Bxc3 $14 11. exf6 (11. bxc3 f5 $14) 11... Nxf6 12. bxc3 O-O) 11. Qh5+ ({White should try} 11. b4 $16 Bb6 12. b5) 11... Qf7 $1 $11 12. Qxf7+ (12. Nxe6 g6 (12... Qxh5 $2 13. Nxg7+ Kd7 14. Nxh5 $18) 13. Nxc7+ Bxc7 $17) 12... Kxf7 13. Nd3 Bxc3 14. bxc3 Ne7 {[%cal Bg8e7,Be7c8,Bc8b6,Bb6c4][%mdl 32]} 15. Rb1 Nc8 16. Nc5 Nb6 17. f3 Nc4 18. Rf2 (18. Nxb7 $2 Rhb8 19. a4 Rxb7 $19) 18... Rhc8 19. Kf1 (19. Nxb7 $2 {is the wrong capture.} Rcb8 20. h4 Rxb7 $19) 19... b6 20. Nd3 Bd7 21. Ra1 c5 22. Nb2 cxd4 23. cxd4 Na5 24. Bd2 Bb5+ (24... Rxc2 $17 25. Bxa5 Rac8 26. Rxc2 Rxc2 27. Bxb6 axb6 (27... Bb5+ 28. Kg1 $17)) 25. Ke1 $15 Nc6 26. c3 Rc7 {White is weak on the light squares} 27. Kd1 Rac8 28. Be1 Na5 29. Kc2 Bc4 {Black is much more active.} 30. Nxc4 Rxc4 ({Of course not} 30... dxc4 31. g4 $11) 31. Kd3 Ra4 32. Rb2 {Against Nb3} Nc4 33. Rb3 Ke7 34. Bd2 Kd7 35. Bc1 Kc6 36. Rb4 Ra5 37. a4 Rb8 38. Ra2 Rb7 39. Kc2 b5 40. Rxb5 (40. h4 $15) 40... Rbxb5 $17 41. axb5+ Kxb5 42. Rxa5+ Nxa5 $15 {[%mdl 4096] Endgame. KB-KN} 43. Ba3 (43. Kd3 $17 {was forced.}) 43... Kc4 $19 44. g4 $2 (44. Bf8 g6 45. Bd6) 44... fxg4 {Black is clearly winning.} 45. fxg4 Nc6 46. Bf8 {[#]} g6 $1 47. h3 a5 {Strongly threatening ...Na7.} 48. Bd6 Na7 {And now ...Nb5 would win.} 49. Bc7 a4 50. Kb2 Nb5 51. Ba5 a3+ 52. Kc2 a2 53. Kb2 {[#]} Nxc3 $1 {[%mdl 512] Weighted Error Value: White=0.50/Black=0.23 (precise) .  Mistake:       	White=4     	Black=3      Inaccurate:     	White=6     	Black=1      OK:         	White=13    	Black=9      Best:        	White=1     	Black=1      Strong:       	---       	Black=1} 0-1

[Event "45th FIDE Olympiad 2024"]
[Site "Budapest"]
[Date "2024.09.15"]
[Round "5.145"]
[White "Romanov, Evgeny"]
[Black "Giron, Jorge Ernesto"]
[Result "1-0"]
[ECO "E05"]
[WhiteElo "2567"]
[BlackElo "2276"]
[PlyCount "45"]
[EventDate "2024.09.05"]
[EventType "team-tourn"]
[EventCountry "HUN"]
[WhiteTeam "North Macedonia"]
[BlackTeam "El Salvador"]
[BlackTeamCountry "ESA"]
[TimeControl "40/5400+30:1800+30"]

1. Nf3 Nf6 2. c4 e6 3. g3 d5 4. Bg2 Be7 5. O-O O-O 6. d4 dxc4 7. Qc2 b5 8. a4 b4 9. Ne5 Qxd4 10. Bxa8 Qxe5 11. Bf4 Qa5 12. Nd2 Ba6 13. Nxc4 Qc5 14. Rac1 Nc6 15. Bxc6 Qxc6 16. Na5 Qd5 17. Nc6 Re8 18. Rfd1 Qh5 19. Nxe7+ Kh8 20. f3 e5 21. g4 Qh3 22. Bxe5 Rxe7 23. Rd8+ 1-0

[Event "45th FIDE Olympiad 2024"]
[Site "Budapest"]
[Date "2024.09.15"]
[Round "5.146"]
[White "Chavez, Ricardo Ernesto"]
[Black "Lazov, Toni"]
[Result "0-1"]
[ECO "B06"]
[WhiteElo "2185"]
[BlackElo "2360"]
[PlyCount "88"]
[EventDate "2024.09.05"]
[EventType "team-tourn"]
[EventCountry "HUN"]
[WhiteTeam "El Salvador"]
[BlackTeam "North Macedonia"]
[WhiteTeamCountry "ESA"]
[TimeControl "40/5400+30:1800+30"]

1. e4 g6 2. d4 Bg7 3. Nc3 c6 4. Nf3 d6 5. Be3 Nd7 6. Qd2 Qc7 7. Bd3 b5 8. a4 b4 9. Ne2 c5 10. c3 c4 11. Bb1 b3 12. O-O e5 13. Ng3 h5 14. Qe2 a5 15. dxe5 dxe5 16. Rd1 Ngf6 17. Nd2 Ba6 18. f3 h4 19. Ngf1 Nh5 20. g3 hxg3 21. hxg3 Qc6 22. Bf2 Qe6 23. Ne3 Nf4 24. gxf4 Qh3 25. Bg3 Qxg3+ 26. Qg2 Qxg2+ 27. Kxg2 Nb6 28. fxe5 Bxe5 29. Ng4 f6 30. Nf1 Rd8 31. Re1 g5 32. Nge3 Kf7 33. Kf2 Nd7 34. Ng4 Nf8 35. Nge3 Ng6 36. Nd5 Rh3 37. Kg2 Bc8 38. Re3 Be6 39. Kf2 Rh1 40. Re1 Nh4 41. Re3 Bh3 42. Re1 Bxf1 43. Rxf1 Rh2+ 44. Ke3 Ng2+ {0-} 0-1

[Event "45th FIDE Olympiad 2024"]
[Site "Budapest"]
[Date "2024.09.15"]
[Round "5.147"]
[White "Nikolovski, Nikola"]
[Black "Morales, Carlos"]
[Result "1-0"]
[ECO "B13"]
[WhiteElo "2388"]
[BlackElo "2131"]
[PlyCount "73"]
[EventDate "2024.09.05"]
[EventType "team-tourn"]
[EventCountry "HUN"]
[WhiteTeam "North Macedonia"]
[BlackTeam "El Salvador"]
[BlackTeamCountry "ESA"]
[TimeControl "40/5400+30:1800+30"]

1. e4 c6 2. d4 d5 3. exd5 cxd5 4. Bd3 Nc6 5. c3 Nf6 6. Bf4 Bg4 7. Qb3 Na5 8. Qa4+ Bd7 9. Qc2 Rc8 10. Nd2 Qb6 11. a4 Nc6 12. Qb3 g6 13. Qxb6 axb6 14. Ngf3 Nh5 15. Be3 e6 16. g4 Nf6 17. h3 h5 18. g5 Ng8 19. Bf4 Bg7 20. Ke2 Nge7 21. b4 O-O 22. Nb3 Rfd8 23. Kd2 Bf8 24. a5 bxa5 25. b5 b6 26. bxc6 Nxc6 27. Ne5 Nxe5 28. Bxe5 a4 29. Nc1 Be7 30. h4 Be8 31. Na2 Bd6 32. f4 b5 33. Rhb1 Rb8 34. Nb4 Rb7 35. Nc2 Bxe5 36. fxe5 Rdb8 37. Rb4 1-0